fUSD/lending_fUSD_20240119
["ID","MTS","AMOUNT","RATE_DAILY","PERIOD"]
[312120763,1705648251103,-171.17894808,0.000229,2]
[312120764,1705648251126,-189.24284288,0.000229,6]
[312120765,1705648251141,-2304.91778824,0.000229,2]
[312120766,1705648251161,-813.0651404,0.000229,2]
[312120767,1705648251187,-1392.55827348,0.000229,2]
[312120768,1705648251650,-589.88273018,0.000229,2]
[312120769,1705648251678,-197.35431103,0.0002297,2]
[312120770,1705648251701,-500.0,0.00022977,2]
[312120771,1705648251725,-867.58082055,0.00022978,2]
[312120772,1705648251751,-164.78321963,0.00022978,2]
[312120773,1705648251763,-19126.13858845,0.00022978,2]
[312120774,1705648251800,-127.75070412,0.00022978,2]
[312120775,1705648251962,-541.16397787,0.00022978,2]
[312120776,1705648252055,-484.29600592,0.00022978,2]
[312120777,1705648252130,-357.71235685,0.00022978,2]
[312120778,1705648252171,-46005.18703876,0.00022978,2]
[312120779,1705648252195,-1196.63849997,0.00022978,2]
[312120780,1705648255029,-331.21602426,0.000229,2]
[312120781,1705648255044,-14376.6154429,0.00022978,2]
[312120782,1705648255538,-302.29212228,0.00022978,2]
[312120783,1705648255624,-768.06384375,0.00022978,2]
[312120784,1705648255690,-333.231228,0.00022978,2]
[312120785,1705648255712,-2996.88810424,0.00022978,2]
[312120867,1705648262986,-520.61504761,0.00021943,2]
[312120868,1705648263005,-152.98495239,0.00021943,2]
[312120869,1705648263025,-360.60818643,0.00022668,4]
[312120870,1705648263040,-438.5404895,0.00022865,2]
[312120871,1705648263089,-413.24342442,0.00022865,2]
[312120872,1705648263472,-252.25461257,0.00022865,2]
[312120873,1705648263495,-488.79095646,0.00022899,2]
[312120874,1705648263644,-247.53657817,0.00022899,2]
[312120875,1705648263658,-2435.64734566,0.00022978,2]
[312120876,1705648385652,500.0,0.0002024,2]
[312120877,1705648386395,500.0,0.00021336,2]
[312120880,1705648659919,160.96,0.00019923,2]
[312120886,1705648703778,151.0,0.00028271,120]
[312120887,1705648772188,164.29298932,0.0003,120]
[312120888,1705648931411,2114.627127,0.00021493,2]
[312120889,1705648947160,420.01569595,0.000216,2]
[312120890,1705648959294,1023.36971362,0.00021493,2]
[312120891,1705648971541,151.0,0.00028308,120]
[312120892,1705648973296,1023.36971362,0.00021493,2]
[312120893,1705648998045,190.16821781,0.00021493,2]
[312120894,1705649074212,202.0,0.00021037,2]
[312120895,1705649147389,7790.58479187,0.00020932,2]
[312120896,1705649147424,8630.84465692,0.00020932,2]
[312120897,1705649174027,220.55,0.00019834,2]
[312120910,1705649267518,250.0,0.00021575,2]
[312120911,1705649319143,172.85,0.00021561,2]
[312120912,1705649320907,151.0,0.00028423,120]
[312120923,1705649356938,-279.2083474,0.00021601,2]
[312120924,1705649356969,-538.88,0.00021602,2]
[312120925,1705649357006,-187.91617118,0.00021684,2]
[312120926,1705649357039,-189.25,0.00021725,2]
[312120927,1705649357083,-225.47,0.0002175,2]
[312120928,1705649357131,-1500.0,0.00021753,2]
[312120929,1705649357165,-727.63,0.00021764,2]
[312120930,1705649357198,-150.0,0.00021765,2]
[312120931,1705649357232,-9156.02,0.00021766,2]
[312120938,1705649380099,3191.26397536,0.00021799,2]
[312120939,1705649380494,23900.0,0.0002174,2]
[312120940,1705649397769,1046.34,0.0002175,2]
[312120941,1705649398408,68908.02150606,0.000217,3]
[312120942,1705649400440,-59966.04391259,0.000217,3]
[312120943,1705649400563,-20033.95608741,0.000217,3]
[312120972,1705649432894,-773.988915,0.000217,3]
[312120973,1705649432952,-932.47056778,0.000217,3]
[312121056,1705649441403,-380.72381824,0.000217,3]
[312121057,1705649441432,-1000.0,0.000217,3]
[312121058,1705649441456,-96150.0,0.000217,3]
[312121059,1705649441845,-3001.56537761,0.000217,3]
[312121060,1705649441914,-776.99749995,0.000217,3]
[312121061,1705649441999,-956.90560005,0.000217,3]
[312121072,1705649443604,-2107.07541024,0.000217,2]
[312121073,1705649443707,-718.16092439,0.000217,2]
[312121074,1705649443875,-308.36,0.000217,2]
[312121075,1705649443921,-8943.05036405,0.000217,2]
[312121076,1705649443942,-63690.10192054,0.000217,3]
[312121077,1705649444025,-837.93466786,0.000217,3]
[312121078,1705649444184,-6051.12435395,0.000217,3]
[312121079,1705649444220,-4970.76410735,0.000217,3]
[312121080,1705649444283,-664.00152642,0.000217,3]
[312121081,1705649444313,-943.24512146,0.000217,3]
[312121082,1705649444337,-535.11206022,0.000217,3]
[312121083,1705649444383,-6991.49287643,0.000217,3]
[312121084,1705649444449,-997.14553248,0.000217,3]
[312121085,1705649444463,-6224.65128155,0.000217,3]
[312121091,1705649446931,-2861.5891611,0.000217,3]
[312121092,1705649446975,-479.39288845,0.000217,3]
[312121093,1705649446996,-3593.39693038,0.000217,3]
[312121094,1705649447020,-1326.5773138,0.000217,3]
[312121095,1705649447073,-402.40279773,0.000217,3]
[312121096,1705649447098,-3799.20605415,0.000217,3]
[312121097,1705649447576,-453443.81391173,0.000217,3]
[312121098,1705649447603,-1840.58896892,0.000217,3]
[312121099,1705649447629,-26255.11500145,0.000217,3]
[312121100,1705649447843,-256.914,0.000217,3]
[312121101,1705649447865,-5539.74377319,0.000217,3]
[312121102,1705649447887,-1157.25362323,0.000217,3]
[312121103,1705649448718,-55378.88786995,0.000217,3]
[312121104,1705649448782,-513.11503667,0.000217,3]
[312121105,1705649467685,-5961.75638114,0.00021699,2]
[312121106,1705649467705,-245.94113422,0.00021699,2]
[312121107,1705649467724,-35547.1958378,0.000217,3]
[312121108,1705649467746,-23835.53482919,0.000217,3]
[312121109,1705649467833,-419.59727266,0.000217,3]
[312121110,1705649467858,-999.63790966,0.000217,3]
[312121111,1705649467887,-2338645.6953433,0.000217,3]
[312121112,1705649467908,-19133.17801413,0.000218,2]
[312121113,1705649467931,-156.996026,0.000218,2]
[312121114,1705649467965,-499.99,0.000218,2]
[312121115,1705649467987,-734.72,0.000218,2]
[312121116,1705649468010,-415899.83374723,0.000218,2]
[312121117,1705649468031,-461.12,0.00021801,2]
[312121118,1705649468051,-2420.63923727,0.00021825,7]
[312121119,1705649468072,-261.14,0.00021886,2]
[312121120,1705649468103,-156.82,0.000219,2]
[312121121,1705649468126,-250.0,0.00021918,2]
[312121122,1705649468141,-667.35199687,0.00021949,2]
[312121123,1705649468158,-5000.0,0.0002195,2]
[312121124,1705649468193,-150.54339926,0.00021978,2]
[312121125,1705649468209,-156.16540912,0.00021982,2]
[312121126,1705649468235,-187.91617117,0.00022084,2]
[312121127,1705649468257,-220.55,0.00022098,2]
[312121128,1705649468281,-941.43,0.000221,2]
[312121129,1705649468306,-401.77,0.000221,2]
[312121130,1705649468340,-401.77,0.000221,2]
[312121131,1705649468368,-941.43,0.000221,2]
[312121132,1705649468393,-401.77,0.000221,2]
[312121133,1705649468420,-941.43,0.000221,2]
[312121134,1705649468445,-401.77,0.000221,2]
[312121136,1705649468477,-160.52,0.00022128,2]
[312121138,1705649468493,-150.0,0.00022178,2]
[312121141,1705649468516,-408.64,0.00022178,2]
[312121143,1705649468535,-300.0,0.00022178,2]
[312121145,1705649468561,-418.5,0.00022178,2]
[312121146,1705649468588,-314.65,0.00022178,2]
[312121149,1705649468625,-150.0,0.00022178,2]
[312121150,1705649468637,-418.5,0.00022178,2]
[312121152,1705649468658,-314.65,0.00022178,2]
[312121154,1705649468680,-408.64,0.00022178,2]
[312121156,1705649468701,-941.43,0.000222,2]
[312121158,1705649468728,-401.77,0.000222,2]
[312121160,1705649468746,-559.443,0.00022246,2]
[312121161,1705649468769,-814.736,0.00022246,2]
[312121163,1705649468794,-1030.469,0.00022246,2]
[312121165,1705649468813,-151.16,0.00022352,2]
[312121166,1705649468835,-187.91617117,0.00022484,2]
[312121167,1705649468857,-941.43,0.00022548,2]
[312121168,1705649468876,-941.43,0.00022548,2]
[312121169,1705649468890,-401.77,0.00022548,2]
[312121170,1705649468924,-203.0,0.00022635,2]
[312121171,1705649468946,-172.85,0.00022639,2]
[312121172,1705649468981,-733.55,0.00022698,2]
[312121173,1705649468999,-150.0,0.000227,2]
[312121174,1705649469021,-225.47,0.00022729,2]
[312121175,1705649469324,-408.74699509,0.00022744,2]
[312121176,1705649469349,-161.0,0.00022766,2]
[312121177,1705649469372,-800.0,0.00022795,2]
[312121178,1705649469395,-500.0,0.00022796,2]
[312121179,1705649469416,-200.0,0.00022796,2]
[312121180,1705649469436,-800.0,0.00022796,2]
[312121181,1705649469466,-262.7915,0.000228,2]
[312121182,1705649469486,-10459.8876,0.000228,2]
[312121183,1705649469512,-5990.2209,0.000228,2]
[312121184,1705649469540,-186.45044788,0.00022847,2]
[312121185,1705649469554,-155.43378467,0.00022859,2]
[312121186,1705649469582,-1032.71118498,0.00022874,2]
[312121187,1705649469598,-173.66243659,0.00022874,2]
[312121188,1705649469617,-1032.71118497,0.00022874,2]
[312121189,1705649469644,-1032.71118497,0.00022874,2]
[312121190,1705649469666,-1032.71118497,0.00022874,2]
[312121191,1705649469677,-1032.71118497,0.00022874,2]
[312121192,1705649469697,-1032.71118497,0.00022875,2]
[312121193,1705649469736,-1032.71118497,0.00022875,2]
[312121194,1705649469754,-1032.71118497,0.00022875,2]
[312121195,1705649469775,-1032.71118497,0.00022875,2]
[312121196,1705649469811,-1032.71118497,0.00022875,2]
[312121197,1705649469842,-1032.71118497,0.00022875,2]
[312121198,1705649469864,-1032.71118497,0.00022875,2]
[312121199,1705649469893,-1032.71118497,0.00022875,2]
[312121200,1705649469912,-1032.71118497,0.00022875,2]
[312121201,1705649469936,-1032.71118497,0.00022875,2]
[312121202,1705649469966,-1032.71118497,0.00022876,2]
[312121203,1705649469985,-1032.71118497,0.00022876,2]
[312121204,1705649470001,-1032.71118497,0.00022876,2]
[312121205,1705649470024,-1032.71118497,0.00022876,2]
[312121206,1705649470056,-5000.0,0.00022876,2]
[312121207,1705649470071,-15305.939,0.00022876,2]
[312121208,1705649470096,-1000.0,0.00022876,2]
[312121209,1705649470109,-419.96765388,0.00022876,2]
[312121210,1705649470133,-151.39427428,0.00022876,6]
[312121211,1705649470151,-1032.71118497,0.00022876,2]
[312121212,1705649470173,-3892.29388053,0.00022877,2]
[312121213,1705649470190,-151.39427428,0.00022882,6]
[312121214,1705649470211,-187.91617117,0.00022884,2]
[312121215,1705649470232,-6991.4929,0.00022886,2]
[312121216,1705649470249,-419.96765387,0.00022888,2]
[312121217,1705649470268,-151.39427428,0.00022888,6]
[312121218,1705649470285,-151.39427428,0.00022894,6]
[312121219,1705649470307,-917.57623787,0.00022896,2]
[312121220,1705649470322,-164.78321963,0.00022898,2]
[312121221,1705649470348,-155.0,0.00022898,2]
[312121222,1705649470370,-420.92155414,0.00022899,2]
[312121223,1705649470389,-917.57623787,0.000229,2]
[312121224,1705649470407,-500.0,0.000229,2]
[312121225,1705649470430,-419.96765387,0.000229,2]
[312121226,1705649470442,-151.39427428,0.000229,6]
[312121227,1705649470462,-1032620.7250289,0.0002296,3]
[312121228,1705649470480,-161.0,0.0002296,2]
[312121229,1705649470498,-411.29261382,0.0002297,2]
[312121230,1705649470530,-466.5401666,0.00022971,2]
[312121231,1705649470546,-362.6566062,0.00022971,2]
[312121232,1705649470571,-476.2108533,0.00022974,2]
[312121233,1705649470592,-21334.3975855,0.00022974,2]
[312121234,1705649470604,-466.18525025,0.00022975,2]
[312121235,1705649470619,-150.0,0.00022975,2]
[312121236,1705649470634,-150.0,0.00022975,2]
[312121237,1705649470650,-150.0,0.00022975,2]
[312121238,1705649470663,-150.0,0.00022975,2]
[312121239,1705649470683,-150.0,0.00022975,2]
[312121240,1705649470703,-150.0,0.00022975,2]
[312121241,1705649470721,-150.0,0.00022975,2]
[312121242,1705649470755,-150.0,0.00022975,2]
[312121243,1705649470776,-151.0,0.00022976,7]
[312121244,1705649470795,-151.0,0.00022976,7]
[312121245,1705649470810,-235.286341,0.00022976,7]
[312121246,1705649470832,-151.0,0.00022976,7]
[312121247,1705649470863,-888229.8236531,0.00022976,2]
[312121248,1705649470886,-151.0,0.00022978,7]
[312121249,1705649470899,-151.0,0.00022978,7]
[312121250,1705649470925,-151.0,0.00022978,7]
[312121251,1705649470938,-151.0,0.00022978,7]
[312121252,1705649470962,-711.83535409,0.00022979,2]
[312121253,1705649470988,-365.9119329,0.0002298,2]
[312121254,1705649471007,-156.4507304,0.0002298,2]
[312121255,1705649471035,-294.14687268,0.0002298,2]
[312121256,1705649471054,-319489.18218583,0.0002298,2]
[312121257,1705649471075,-151.0,0.0002298,7]
[312121258,1705649471094,-151.0,0.0002298,7]
[312121259,1705649471107,-151.0,0.0002298,7]
[312121260,1705649471118,-151.0,0.0002298,7]
[312121261,1705649471142,-151.0,0.00022982,7]
[312121262,1705649471163,-151.0,0.00022982,7]
[312121263,1705649471178,-151.0,0.00022982,7]
[312121264,1705649471191,-14475.0921258,0.00022982,2]
[312121265,1705649471215,-38520.3761666,0.00022982,2]
[312121266,1705649471240,-2334.3139097,0.00022982,2]
[312121267,1705649471268,-6285.1264999,0.00022982,2]
[312121268,1705649471294,-5121.4092333,0.00022982,2]
[312121269,1705649471324,-3957.6919666,0.00022982,2]
[312121270,1705649471346,-2793.9746999,0.00022982,2]
[312121271,1705649471366,-1630.2574333,0.00022982,2]
[312121272,1705649471384,-4885.6300256,0.00022982,2]
[312121273,1705649471401,-3981.0353417,0.00022982,2]
[312121274,1705649471417,-3076.4406578,0.00022982,2]
[312121275,1705649471438,-2171.845974,0.00022982,2]
[312121276,1705649471453,-1267.2512901,0.00022982,2]
[312121277,1705649471477,-150.0,0.00022983,2]
[312121278,1705649471494,-150.0,0.00022983,2]
[312121279,1705649471514,-19076.3633342,0.00022984,2]
[312121280,1705649471546,-23677.6345426,0.00022984,2]
[312121281,1705649471561,-28278.905751,0.00022984,2]
[312121282,1705649471579,-32880.1769594,0.00022984,2]
[312121283,1705649471598,-37481.4481678,0.00022984,2]
[312121284,1705649471621,-33271.8923666,0.00022984,2]
[312121285,1705649471639,-28023.4085666,0.00022984,2]
[312121286,1705649471652,-22774.9247666,0.00022984,2]
[312121287,1705649471691,-17526.4409666,0.00022984,2]
[312121288,1705649471710,-12277.9571666,0.00022984,2]
[312121289,1705649471723,-2016.2586372,0.00022984,2]
[312121290,1705649471740,-1698.2033647,0.00022984,2]
[312121291,1705649471757,-1380.1480922,0.00022984,2]
[312121292,1705649471777,-1062.0928196,0.00022984,2]
[312121293,1705649471793,-744.0375471,0.00022984,2]
[312121294,1705649471819,-151.0,0.00022984,7]
[312121295,1705649471839,-151.0,0.00022984,7]
[312121296,1705649471865,-151.0,0.00022984,7]
[312121297,1705649471880,-151.0,0.00022984,7]
[312121298,1705649471890,-151.0,0.00022984,7]
[312121299,1705649471903,-151.0,0.00022984,7]
[312121300,1705649471925,-151.0,0.00022984,7]
[312121301,1705649471943,-151.0,0.00022984,7]
[312121302,1705649471958,-151.0,0.00022984,7]
[312121303,1705649471970,-151.0,0.00022986,7]
[312121304,1705649471989,-151.0,0.00022986,7]
[312121305,1705649472013,-103274.0,0.00022986,2]
[312121306,1705649472025,-151.0,0.00022986,7]
[312121307,1705649472048,-151.0,0.00022986,7]
[312121308,1705649472061,-151.0,0.00022986,7]
[312121309,1705649472091,-541.9685654,0.00022997,2]
[312121310,1705649472103,-999.99,0.00022998,2]
[312121311,1705649472127,-999.99,0.00022998,2]
[312121312,1705649472149,-1005.59,0.00022998,2]
[312121313,1705649472169,-999.99,0.00022998,2]
[312121314,1705649472187,-1000.0,0.00022998,2]
[312121315,1705649472208,-690.48,0.00022998,2]
[312121316,1705649472239,-999.99,0.00022998,2]
[312121317,1705649472261,-1000.01,0.00022998,2]
[312121318,1705649472280,-999.99,0.00022998,2]
[312121319,1705649472295,-1000.0,0.00022998,2]
[312121320,1705649472322,-1000.01,0.00022998,2]
[312121321,1705649472338,-290938.21808301,0.00022998,2]
[312121322,1705649472358,-237.294827,0.00022998,7]
[312121323,1705649472393,-296.110015,0.00022998,7]
[312121324,1705649472411,-151.0,0.00022998,7]
[312121325,1705649472438,-302.63214907,0.00022999,2]
[312121326,1705649472461,-150.0,0.00022999,2]
[312121327,1705649472493,-150.0,0.00022999,2]
[312121328,1705649472524,-150.0,0.00022999,2]
[312121329,1705649472550,-150.0,0.00022999,2]
[312121330,1705649472559,-150.0,0.00022999,2]
[312121331,1705649472580,-150.0,0.00022999,2]
[312121332,1705649472596,-116299.23287156,0.00023,2]
[312121333,1705649472606,-948039.96511136,0.00023,2]
[312121334,1705649472621,-434349.68498214,0.00023,2]
[312121335,1705649472639,-206478.9306499,0.00023,2]
[312121336,1705649472664,-1701.34197427,0.00023,3]
[312121337,1705649472677,-1647137.36443129,0.00023,2]
[312121338,1705649472703,-168.0,0.00023,2]
[312121339,1705649472729,-358.92,0.00023,2]
[312121340,1705649472742,-150.0,0.00023,2]
[312121341,1705649472767,-294.39,0.00023,2]
[312121342,1705649472779,-294.39,0.00023,2]
[312121343,1705649472793,-1247.83,0.00023,2]
[312121344,1705649472807,-293.29,0.00023,2]
[312121345,1705649472823,-151.0,0.00023,2]
[312121346,1705649472837,-275.5,0.00023,2]
[312121347,1705649472854,-151.0,0.00023,7]
[312121348,1705649472870,-161.0,0.00023,2]
[312121349,1705649472898,-500.0,0.00023167,2]
[312121350,1705649472915,-1004.92384619,0.00023276,2]
[312121351,1705649472935,-648.12246913,0.00023288,2]
[312121352,1705649472960,-500.0,0.00023288,2]
[312121353,1705649472984,-500.0,0.00023288,2]
[312121354,1705649473005,-255.76156585,0.00023288,2]
[312121355,1705649473024,-524.94397188,0.00023288,2]
[312121356,1705649473038,-314.96638312,0.00023288,2]
[312121357,1705649473057,-381.56435836,0.00023288,4]
[312121358,1705649473078,-500.0,0.00023288,4]
[312121359,1705649473090,-500.0,0.00023288,4]
[312121360,1705649473107,-500.0,0.00023288,4]
[312121361,1705649473119,-500.0,0.00023288,4]
[312121362,1705649473147,-262.5260245,0.00023288,4]
[312121363,1705649473173,-500.0,0.00023288,4]
[312121364,1705649473184,-500.0,0.00023288,4]
[312121365,1705649473211,-500.0,0.00023288,4]
[312121366,1705649473244,-276.92546265,0.00023288,4]
[312121367,1705649473273,-524.79650791,0.00023288,4]
[312121368,1705649473289,-452.20610645,0.00023288,4]
[312121369,1705649473305,-500.0,0.00023288,4]
[312121370,1705649473320,-420.1980357,0.00023288,4]
[312121371,1705649473350,-500.0,0.00023288,4]
[312121372,1705649473374,-500.0,0.00023288,4]
[312121373,1705649473395,-500.0,0.00023288,4]
[312121374,1705649473415,-162.03061728,0.00023288,2]
[312121375,1705649473434,-151.8,0.00023319,2]
[312121376,1705649473453,-178.71,0.00023344,2]
[312121377,1705649473472,-150.0,0.0002337,2]
[312121378,1705649473496,-3291.0,0.000235,2]
[312121379,1705649473517,-250.0,0.000235,2]
[312121380,1705649473544,-941.43,0.00023507,2]
[312121381,1705649473568,-804.51,0.00023507,2]
[312121382,1705649473588,-160.52,0.00023515,2]
[312121383,1705649473597,-3892.29388046,0.00023515,2]
[312121384,1705649473609,-30437.0,0.000236,2]
[312121385,1705649473624,-225.47,0.00023707,2]
[312121386,1705649473639,-172.85,0.00023717,2]
[312121387,1705649473649,-150.0,0.00023794,2]
[312121388,1705649473662,-150.0,0.00023794,2]
[312121389,1705649473680,-347.25,0.00023794,2]
[312121390,1705649473690,-155.85,0.00023868,2]
[312121391,1705649473706,-500.0,0.0002389,2]
[312121392,1705649473725,-180.0,0.00023905,2]
[312121393,1705649473740,-201.13102968,0.00024,2]
[312121394,1705649473749,-431.53216335,0.00024,2]
[312121395,1705649473763,-600.0,0.00024,3]
[312121396,1705649473779,-250.0,0.00024,2]
[312121397,1705649473798,-277.292105,0.00024,2]
[312121398,1705649473828,-299.999999,0.000241,2]
[312121399,1705649473848,-250.0,0.000241,2]
[312121400,1705649473864,-168.0,0.000241,2]
[312121401,1705649473892,-3892.29388046,0.00024154,2]
[312121402,1705649473913,-167.0,0.00024297,2]
[312121403,1705649473935,-167.0,0.00024297,2]
[312121404,1705649473961,-538.88,0.00024302,2]
[312121405,1705649473995,-220.55,0.00024362,2]
[312121406,1705649474020,-1347.0,0.000245,2]
[312121407,1705649474043,-250.0,0.000245,2]
[312121408,1705649474064,-461.12,0.00024526,2]
[312121409,1705649474103,-500.0,0.00024614,2]
[312121410,1705649474141,-161.0,0.00024614,2]
[312121411,1705649474166,-250.0,0.00024658,2]
[312121412,1705649474188,-150.0,0.00024658,2]
[312121413,1705649474229,-150.0,0.00024658,2]
[312121414,1705649474254,-150.0,0.00024658,2]
[312121415,1705649474279,-150.0,0.00024658,2]
[312121416,1705649474317,-150.0,0.00024658,2]
[312121417,1705649474342,-150.0,0.00024658,2]
[312121418,1705649474364,-150.0,0.00024658,2]
[312121419,1705649474393,-150.0,0.00024658,2]
[312121420,1705649474411,-150.0,0.00024658,2]
[312121421,1705649474449,-150.0,0.00024658,2]
[312121422,1705649474472,-150.0,0.00024658,2]
[312121423,1705649474501,-150.0,0.00024658,2]
[312121424,1705649474529,-150.0,0.00024658,2]
[312121425,1705649474549,-150.0,0.00024658,2]
[312121426,1705649474571,-150.0,0.00024658,2]
[312121427,1705649474596,-150.0,0.00024658,2]
[312121428,1705649474617,-150.0,0.00024658,2]
[312121429,1705649474639,-150.0,0.00024658,2]
[312121430,1705649474661,-150.0,0.00024658,2]
[312121431,1705649474681,-152.64182422,0.00024658,2]
[312121432,1705649474711,-225.47,0.00024686,2]
[312121433,1705649474727,-3892.29388046,0.00024792,2]
[312121434,1705649474760,-172.85,0.00024795,2]
[312121435,1705649474798,-160.52,0.00024903,2]
[312121436,1705649474818,-151.8,0.00024946,2]
[312121437,1705649474830,-400.0,0.0002497,2]
[312121438,1705649474861,-178.71,0.00024972,2]
[312121439,1705649474887,-155.28190917,0.00024995,2]
[312121440,1705649474924,-158.67264273,0.00025,2]
[312121441,1705649474950,-933.68908946,0.00025,2]
[312121442,1705649474970,-202.02493081,0.00025,2]
[312121443,1705649475004,-1584.10702682,0.00025,2]
[312121444,1705649475022,-303.46202419,0.00025,2]
[312121445,1705649475045,-167.37478937,0.00025,2]
[312121446,1705649475063,-2002.75826668,0.00025,2]
[312121447,1705649475085,-307.5946143,0.00025,5]
[312121448,1705649475101,-20000.0,0.00025,2]
[312121449,1705649475119,-22624.44515743,0.00025,2]
[312121450,1705649475144,-1249.1438969,0.00025,2]
[312121451,1705649475158,-250.0,0.00025,2]
[312121452,1705649475186,-150.0,0.00025,2]
[312121453,1705649475214,-300.0,0.00025,2]
[312121454,1705649475236,-152.162315,0.00025,2]
[312121455,1705649475263,-2169.7514422,0.00025099,28]
[312121456,1705649475281,-168.0,0.000252,2]
[312121457,1705649475299,-167.0,0.00025299,2]
[312121458,1705649475317,-203.0,0.00025304,6]
[312121459,1705649475344,-500.0,0.00025337,2]
[312121460,1705649475368,-3892.29388046,0.00025431,2]
[312121461,1705649475384,-154.0,0.000255,2]
[312121462,1705649475403,-150.0,0.000255,2]
[312121463,1705649475422,-155.0,0.00025581,2]
[312121464,1705649475440,-225.47,0.00025664,2]
[312121465,1705649475456,-1882.31,0.00025729,2]
[312121466,1705649475484,-401.77,0.00025729,2]
[312121467,1705649475503,-3036.93537148,0.00025821,10]
[312121468,1705649475516,-157.94,0.00025967,2]
[312121469,1705649475535,-150.0,0.00025999,2]
[312121470,1705649475568,-150.0,0.00025999,2]
[312121471,1705649475592,-20000.0,0.00026,2]
[312121472,1705649475635,-650.0,0.00026,3]
[312121473,1705649475654,-650.0,0.00026,2]
[312121474,1705649475675,-150.0,0.00026,2]
[312121475,1705649475699,-300.0,0.00026,2]
[312121476,1705649475719,-209.77993958,0.00026,2]
[312121477,1705649475742,-209.77993958,0.00026,2]
[312121478,1705649475908,-209.77993958,0.00026,2]
[312121479,1705649475958,-209.77993958,0.00026,2]
[312121480,1705649475983,-209.77993958,0.00026,2]
[312121481,1705649476008,-209.77993958,0.00026,2]
[312121482,1705649476019,-209.77993958,0.00026,2]
[312121483,1705649476049,-209.77993958,0.00026,2]
[312121484,1705649476066,-209.77993958,0.00026,2]
[312121485,1705649476081,-209.77993958,0.00026,2]
[312121486,1705649476116,-209.77993958,0.00026,2]
[312121487,1705649476135,-209.77993958,0.00026,2]
[312121488,1705649476160,-209.77993958,0.00026,2]
[312121489,1705649476173,-209.77993958,0.00026,2]
[312121490,1705649476196,-209.77993958,0.00026,2]
[312121491,1705649476215,-209.77993958,0.00026,2]
[312121492,1705649476244,-209.77993958,0.00026,2]
[312121493,1705649476262,-209.77993958,0.00026,2]
[312121494,1705649476286,-209.77993958,0.00026,2]
[312121495,1705649476313,-209.77993958,0.00026,2]
[312121496,1705649476333,-209.77993958,0.00026,2]
[312121497,1705649476354,-209.77993958,0.00026,2]
[312121498,1705649476377,-209.77993958,0.00026,2]
[312121499,1705649476397,-209.77993958,0.00026,2]
[312121500,1705649476418,-209.77993958,0.00026,2]
[312121501,1705649476444,-209.77993958,0.00026,2]
[312121502,1705649476466,-209.77993958,0.00026,2]
[312121503,1705649476485,-209.77993958,0.00026,2]
[312121504,1705649476517,-209.77993958,0.00026,2]
[312121505,1705649476534,-209.77993958,0.00026,2]
[312121506,1705649476552,-209.77993958,0.00026,2]
[312121507,1705649476574,-209.77993958,0.00026,2]
[312121508,1705649476596,-209.77993958,0.00026,2]
[312121509,1705649476612,-209.77993958,0.00026,2]
[312121510,1705649476635,-209.77993958,0.00026,2]
[312121511,1705649476658,-209.77993958,0.00026,2]
[312121512,1705649476674,-209.77993958,0.00026,2]
[312121513,1705649476695,-209.77993958,0.00026,2]
[312121514,1705649476713,-209.77993958,0.00026,2]
[312121515,1705649476756,-209.77993958,0.00026,2]
[312121516,1705649476778,-209.77993958,0.00026,2]
[312121517,1705649476797,-209.77993958,0.00026,2]
[312121518,1705649476812,-209.77993958,0.00026,2]